bitfinex/quotes_SOLUSD_20241121
["timestamp","ask_amount","ask_price","bid_price","bid_amount"]
[1732221879243,19.44886729,253.59,253.56,11.8315]
[1732221880046,3.942,253.68,253.53,11.8329]
[1732221880047,19.44886729,253.57,253.53,11.8329]
[1732221881143,12.11381046,253.59,253.53,11.8329]
[1732221881348,12.11381046,253.63,253.55,12.11381046]
[1732221881562,12.11381046,253.69,253.61,12.11381046]
[1732221881847,12.11381046,253.71,253.63,12.11381046]
[1732221882048,12.11381046,253.73,253.65,12.11381046]
[1732221882463,12.11381046,253.72,253.64,12.11381046]
[1732221883173,12.11381046,253.7,253.62,48.87101046]
[1732221883346,12.11381046,253.71,253.63,12.11381046]
[1732221883546,12.11381046,253.69,253.62,36.7572]
[1732221883751,12.11381046,253.68,253.62,36.7572]
[1732221883958,12.11381046,253.69,253.62,36.7572]
[1732221884155,12.11381046,253.69,253.62,26.9]
[1732221884357,11.61381046,253.71,253.64,12.11381046]
[1732221884575,12.11381046,253.7,253.64,12.11381046]
[1732221885173,12.11381046,253.7,253.65,8.279]
[1732221885748,12.11381046,253.74,253.66,12.11381046]
[1732221885953,12.11381046,253.76,253.68,12.11381046]
[1732221886265,12.11381046,253.76,253.65,20.1063]
[1732221886266,12.11381046,253.76,253.7,12.11381046]
[1732221886469,12.11381046,253.78,253.7,12.11381046]
[1732221887345,12.11381046,253.76,253.71,8.2771]
[1732221887559,12.11381046,253.76,253.68,12.11381046]
[1732221887953,12.11381046,253.74,253.61,12.7575]
[1732221888170,12.11381046,253.68,253.62,8.28]
[1732221889446,12.11381046,253.7,253.63,12.11381046]
[1732221890355,12.11381046,253.72,253.63,12.11381046]
[1732221890556,12.11381046,253.72,253.64,8.2793]
[1732221890868,12.11381046,253.7,253.64,8.2793]
[1732221891567,12.11381046,253.7,253.64,7.72361273]
[1732221891878,12.11381046,253.68,253.64,7.72361273]
[1732221892247,12.11381046,253.66,253.64,5.9138]
[1732221892644,12.11381046,253.66,253.59,32.3955]
[1732221892863,12.11381046,253.66,253.6,2.3658]
[1732221893065,12.11381046,253.66,253.6,8.2806]
[1732221894165,12.11381046,253.68,253.6,8.2806]
[1732221894372,12.11381046,253.7,253.63,12.11381046]
[1732221894676,12.11381046,253.71,253.64,12.11381046]
[1732221895571,12.11381046,253.71,253.65,8.279]
[1732221896080,12.11381046,253.73,253.65,8.279]
[1732221896252,12.11381046,253.73,253.65,20.39281046]
[1732221897269,12.11381046,253.75,253.67,12.11381046]
[1732221897774,12.11381046,253.77,253.69,12.11381046]
[1732221898146,12.11381046,253.79,253.71,12.11381046]
[1732221899354,12.11381046,253.79,253.72,8.2768]
[1732221899875,12.11381046,253.76,253.72,8.2768]
[1732221900070,12.11381046,253.75,253.72,8.2768]
[1732221900572,12.11381046,253.77,253.72,8.2768]
[1732221900962,12.11381046,253.75,253.72,5.912]
[1732221901876,5.27899765,253.93,253.72,18.02581046]
[1732221902055,12.11381046,253.83,253.74,12.11381046]
[1732221902250,12.11381046,253.85,253.76,12.11381046]
[1732221902854,12.11381046,253.85,253.78,12.11381046]
[1732221903058,12.11381046,253.87,253.79,8.2744]
[1732221903259,3.9382,253.93,253.79,5.9103]
[1732221903260,12.11381046,253.81,253.79,5.9103]
[1732221903467,12.11381046,253.81,253.79,8.2744]
[1732221904356,2.5,253.92,253.79,8.2744]
[1732221904552,12.11381046,253.81,253.79,8.2744]
[1732221904977,12.11381046,253.81,253.79,5.9103]
[1732221905162,12.11381046,253.81,253.75,2.3645]
[1732221905372,12.11381046,253.76,253.75,2.3645]
[1732221905961,12.11381046,253.76,253.69,11.8254]
[1732221906163,12.11381046,253.74,253.71,2.3648]
[1732221906365,12.11381046,253.72,253.7,5.9124]
[1732221906677,12.11381046,253.72,253.68,14.8377]
[1732221906883,12.11381046,253.72,253.68,20.7506]
[1732221907379,12.11381046,253.74,253.68,20.7506]
[1732221907584,12.11381046,253.76,253.69,12.11381046]
[1732221907887,12.11381046,253.78,253.71,12.11381046]
[1732221908084,12.11381046,253.8,253.71,12.11381046]
[1732221908459,12.11381046,253.8,253.68,32.5765]
[1732221908460,12.11381046,253.8,253.73,12.11381046]
[1732221908672,12.11381046,253.78,253.71,12.11381046]
[1732221908875,12.11381046,253.74,253.69,20.0]
[1732221909077,12.11381046,253.74,253.68,20.7506]
[1732221910057,12.11381046,253.76,253.69,12.11381046]
[1732221910382,12.11381046,253.72,253.68,8.278]
[1732221910565,12.11381046,253.7,253.68,8.278]
[1732221910768,12.11381046,253.7,253.68,5.9129]
[1732221911185,12.11381046,253.7,253.63,8.2797]
[1732221911367,12.11381046,253.68,253.63,8.2797]
[1732221911891,12.11381046,253.7,253.63,8.2797]
[1732221912078,12.11381046,253.72,253.64,12.11381046]
[1732221912689,9.8478,253.87,253.66,12.11381046]
[1732221912690,12.11381046,253.74,253.66,12.11381046]
[1732221913089,12.11381046,253.76,253.68,12.11381046]
[1732221914304,12.11381046,253.76,253.63,11.8282]
[1732221914305,12.11381046,253.78,253.7,12.11381046]
[1732221915677,12.11381046,253.76,253.71,20.1016]
[1732221916368,12.11381046,253.8,253.72,20.0]
[1732221916592,12.11381046,253.8,253.73,12.11381046]
[1732221916998,12.11381046,253.82,253.75,31.3007]
[1732221917182,12.11381046,253.84,253.75,43.41451046]
[1732221917684,31.9463,253.96,253.75,43.41451046]
[1732221917685,6.4378,253.95,253.76,28.2754]
[1732221917894,12.11381046,253.86,253.77,12.11381046]
[1732221918296,12.11381046,253.86,253.76,8.2754]
[1732221918593,12.11381046,253.8,253.76,8.2754]
[1732221918795,12.11381046,253.89,253.76,8.2754]
[1732221918796,12.11381046,253.82,253.76,8.2754]
[1732221919095,12.11381046,253.84,253.77,12.11381046]
[1732221919301,6.4378,253.95,253.77,12.11381046]
[1732221919302,12.11381046,253.86,253.77,12.11381046]
[1732221919512,12.11381046,253.88,253.81,12.11381046]
[1732221919797,12.11381046,253.94,253.85,12.11381046]
[1732221920510,12.11381046,253.94,253.87,12.11381046]
[1732221920671,12.11381046,253.94,253.88,8.2716]
[1732221921002,12.11381046,253.94,253.89,46.315]
[1732221921316,12.11381046,253.96,253.89,46.315]
[1732221921479,12.11381046,253.96,253.89,58.42881046]
[1732221921676,12.11381046,253.98,253.91,12.11381046]
[1732221922000,12.11381046,254.0,253.91,12.11381046]
[1732221922206,12.11381046,253.98,253.91,12.11381046]
[1732221922395,12.11381046,254.0,253.91,12.11381046]
[1732221922576,12.11381046,254.04,253.95,12.11381046]
[1732221922914,12.11381046,254.04,253.96,8.2689]
[1732221923404,12.11381046,254.02,253.96,8.2689]
[1732221923704,12.11381046,254.0,253.96,8.2689]
[1732221924680,12.11381046,254.02,253.96,5.9064]
[1732221925300,3.24,254.06,253.96,5.9064]
[1732221925301,3.24,254.06,254.0,12.11381046]
[1732221925602,3.24,254.06,254.01,45.1526]
[1732221925823,3.24,254.06,254.02,12.11381046]
[1732221926696,3.24,254.06,254.03,8.2667]
[1732221927722,3.24,254.06,254.04,12.11381046]
[1732221928125,3.1146,254.06,254.04,12.11381046]
[1732221928312,3.1146,254.06,254.05,20.0]
[1732221928519,3.1146,254.06,254.05,32.11381046]
[1732221928705,3.1146,254.06,254.05,34.47551046]
[1732221930012,2.9892,254.06,254.05,22.3617]
[1732221930216,20.0,254.26,254.14,162.7]
[1732221930421,3.9329,254.27,254.06,20.0]
[1732221930917,3.9329,254.27,254.07,8.2653]
[1732221931125,6.4329,254.27,254.07,8.2653]
[1732221931299,2.5,254.24,254.07,8.2653]
[1732221931503,5.0,254.24,254.07,8.2653]
[1732221931702,23.776884,254.23,254.07,8.2653]
[1732221932507,23.776884,254.23,254.05,11.8086]
[1732221932508,23.776884,254.23,254.06,20.0]
[1732221933019,3.9334,254.24,254.06,20.0]
[1732221933226,9.9965,254.29,254.06,20.0]
[1732221933428,3.9329,254.27,254.06,20.0]
[1732221933621,31.6302,254.33,254.08,20.0]
[1732221933819,3.9322,254.31,254.08,20.0]
[1732221934410,3.9326,254.28,254.09,8.2647]
[1732221934729,5.0,254.27,254.09,8.2647]
[1732221935115,23.776884,254.24,254.09,8.2647]
[1732221935610,3.9334,254.23,254.03,20.0]
[1732221935930,23.776884,254.22,254.03,20.0]
[1732221936705,27.710284,254.23,254.04,8.2663]
[1732221937232,27.710284,254.23,254.05,20.0]
[1732221937611,23.776884,254.21,254.04,8.2663]
[1732221938010,23.776884,254.19,254.04,8.2663]
[1732221939009,20.0,254.19,254.04,5.9045]
[1732221939218,23.776884,254.18,254.04,5.9045]
[1732221939514,23.776884,254.19,254.04,5.9045]
[1732221939709,3.9339,254.2,254.04,5.9045]
[1732221939905,23.9332,254.24,254.11,0.5]
[1732221940125,3.9332,254.24,254.13,0.5]
[1732221941008,3.9332,254.24,254.13,2.8609]
[1732221941742,3.9332,254.24,254.13,2.3609]
[1732221941905,3.9332,254.24,254.13,2.8609]
[1732221942110,20.0,254.27,254.13,8.7633]
[1732221942111,3.9329,254.26,254.13,8.7633]
[1732221942533,23.776884,254.25,254.13,8.7633]
[1732221943518,23.776884,254.23,254.13,8.7633]
[1732221944327,5.19538814,254.32,254.13,8.7633]
[1732221944328,31.6302,254.33,254.18,0.5]
[1732221944632,3.9322,254.31,254.2,0.5]
[1732221945832,23.9315,254.35,254.21,8.2608]
[1732221946246,23.776884,254.33,254.21,8.2608]
[1732221946415,23.776884,254.31,254.21,5.9006]
[1732221946731,23.776884,254.33,254.21,5.9006]
[1732221946929,23.776884,254.34,254.21,8.7608]
[1732221947937,23.776884,254.32,254.21,6.4006]
[1732221948128,23.776884,254.3,254.21,5.9006]
[1732221948444,23.776884,254.3,254.19,2.3603]
[1732221948612,23.776884,254.3,254.19,2.8603]
[1732221948811,23.776884,254.3,254.19,8.2613]
[1732221949219,23.776884,254.3,254.15,0.5]
[1732221949220,20.0,254.29,254.15,0.5]
[1732221949420,23.776884,254.26,254.15,8.2627]
[1732221949711,23.776884,254.26,254.15,5.902]
[1732221949712,23.776884,254.24,254.15,5.902]
[1732221949917,23.776884,254.22,254.15,8.2628]
[1732221950125,23.776884,254.22,254.15,5.902]
[1732221950331,20.0,254.21,254.12,2.861]
[1732221950541,23.776884,254.2,254.12,2.861]
[1732221950835,23.776884,254.22,254.12,2.861]
[1732221951218,23.776884,254.2,254.12,2.861]
[1732221951621,27.710784,254.2,254.12,0.5]
[1732221951925,27.710784,254.2,254.1,5.9029]
[1732221952436,27.710784,254.2,254.08,2.8613]
[1732221952823,27.710784,254.2,254.09,2.3613]
[1732221953632,27.710784,254.2,254.1,2.3612]
[1732221954045,23.776884,254.18,254.11,14.8234]
[1732221954343,23.776884,254.18,254.11,12.4623]
[1732221955524,23.776884,254.16,254.11,12.4623]
[1732221955946,23.776884,254.18,254.11,14.8234]
[1732221956762,12.133,254.19,254.12,0.5]
[1732221956971,12.133,254.19,254.14,0.5]
[1732221957549,12.133,254.19,254.17,8.2621]
[1732221958849,23.776884,254.18,254.17,8.2621]
[1732221960173,12.133,254.19,254.17,8.2621]
[1732221960984,35.909884,254.19,254.18,0.5]
[1732221961261,12.133,254.19,254.18,20.5]
[1732221961647,12.133,254.19,254.18,0.5]
[1732221961849,11.633,254.19,254.18,0.5]
[1732221965764,23.776884,254.18,254.13,2.4674]
[1732221966160,23.776884,254.18,254.14,0.5]
[1732221966359,23.776884,254.18,254.14,1.9673]
[1732221966573,23.776884,254.18,254.14,2.4673]
[1732221966887,23.776884,254.18,254.14,7.3858]
[1732221967181,11.633,254.19,254.16,0.5]
[1732221967368,11.633,254.19,254.18,0.5]
[1732221968386,11.633,254.19,254.18,2.4671]
[1732221971180,35.409884,254.19,254.17,1.9671]
[1732221971474,35.409884,254.19,254.17,6.885]
[1732221971680,35.409884,254.19,254.18,0.5]
[1732221972292,35.409884,254.19,254.16,0.5]
[1732221972483,23.776884,254.18,254.15,1.9672]
[1732221972893,23.776884,254.18,254.14,0.5]
[1732221973080,23.776884,254.18,254.14,2.4673]
[1732221973798,23.776884,254.18,254.14,7.3858]
[1732221973982,11.633,254.19,254.16,0.5]
[1732221974178,11.633,254.19,254.18,0.5]
[1732221975590,11.633,254.19,254.18,2.4671]
[1732221977493,23.776884,254.36,254.23,151.067]
[1732221977687,20.0,254.33,254.22,0.5]
[1732221977896,23.776884,254.32,254.22,0.5]
[1732221978081,23.776884,254.3,254.22,0.5]
[1732221978500,27.709084,254.32,254.23,6.8835]
[1732221978707,23.776884,254.3,254.23,6.8835]
[1732221979201,23.776884,254.3,254.23,4.9168]
[1732221980581,20.0,254.29,254.23,6.8835]
[1732221980784,23.776884,254.28,254.19,1.967]
[1732221981500,23.776884,254.28,254.2,0.5]
[1732221981700,23.776884,254.28,254.19,1.967]
[1732221981887,23.776884,254.28,254.19,6.8845]
[1732221982294,23.776884,254.28,254.19,7.3845]
[1732221982500,3.9328,254.27,254.19,7.3845]
[1732221982786,23.776884,254.26,254.19,6.8845]
[1732221983314,23.776884,254.26,254.19,7.3845]
[1732221983609,23.776884,254.26,254.19,4.9175]
[1732221983900,23.776884,254.26,254.19,5.4175]
[1732221984989,3.9323,254.31,254.19,7.3845]
[1732221985585,3.9323,254.31,254.23,0.5]
[1732221985784,3.9314,254.36,254.23,0.5]
[1732221986601,23.776884,254.35,254.23,0.5]
[1732221986903,23.9317,254.34,254.23,2.4666]
[1732221987109,20.0,254.32,254.23,2.4666]
[1732221987314,23.776884,254.31,254.23,2.4666]
[1732221987812,23.776884,254.33,254.23,1.9666]
[1732221988023,23.776884,254.31,254.23,2.4666]
[1732221988890,23.776884,254.31,254.23,48.0496]
[1732221989290,23.776884,254.33,254.23,52.9664]
[1732221990408,23.776884,254.31,254.23,52.9664]
[1732221991116,23.776884,254.31,254.23,57.83911489]
[1732221991315,23.776884,254.31,254.23,4.87271489]
[1732221991522,23.776884,254.31,254.2,4.87271489]
[1732221991999,23.776884,254.31,254.22,0.5]
[1732221992491,3.9323,254.3,254.22,7.33951489]
[1732221992694,23.776884,254.29,254.21,4.87271489]
[1732221992916,23.776884,254.29,254.2,4.9173]
[1732221992917,23.776884,254.29,254.2,9.79001489]
[1732221993100,0.1388426,254.22,254.2,9.79001489]
[1732221993718,0.1388426,254.22,254.2,11.75691489]
[1732221994215,0.1388426,254.22,254.21,4.87271489]
[1732221994415,0.1388426,254.22,254.21,0.5]
[1732221995224,0.1388426,254.22,254.2,4.9173]
[1732221995608,23.9157266,254.22,254.17,45.4078]
[1732221995815,23.9157266,254.22,254.15,4.9182]
[1732221996126,27.8494266,254.22,254.13,2.4674]
[1732221997100,23.9157266,254.22,254.13,7.3861]
[1732221997294,0.1388426,254.22,254.13,7.3861]
[1732221997702,0.1388426,254.22,254.15,0.5]
[1732221997915,0.1388426,254.22,254.16,0.5]
[1732221998619,0.1388426,254.22,254.16,2.4671]
[1732221999106,0.1388426,254.22,254.16,7.3852]
[1732222000702,0.1388426,254.22,254.14,0.5]
[1732222000916,23.776884,254.21,254.14,2.4673]
[1732222001107,23.776884,254.21,254.12,2.4675]
[1732222002320,23.776884,254.19,254.11,5.4189]
[1732222002528,23.776884,254.19,254.11,4.9189]
[1732222002825,23.776884,254.19,254.11,5.4189]
[1732222003432,23.776884,254.19,254.06,4.9199]
[1732222003726,23.776884,254.19,254.05,45.7269]
[1732222003727,23.776884,254.16,254.05,0.5]
[1732222004310,23.776884,254.17,254.05,0.5]
[1732222005018,23.776884,254.17,254.08,0.5]
[1732222005629,23.776884,254.17,254.04,0.5]
[1732222005829,23.776884,254.17,254.06,0.5]
[1732222006031,22.21975187,254.17,254.06,0.5]
[1732222006529,3.934,254.19,254.07,1.9679]
[1732222007307,3.934,254.19,254.08,0.5]
[1732222007521,3.934,254.19,254.1,0.5]
[1732222008325,23.776884,254.18,254.1,0.5]
[1732222008628,27.711184,254.18,254.1,2.4677]
[1732222010136,23.776884,254.19,254.12,0.5]
[1732222010427,4.0725426,254.22,254.14,0.5]
[1732222011512,23.776884,254.21,254.11,0.5]
[1732222011732,23.776884,254.21,254.1,17.2762]
[1732222011923,23.776884,254.21,254.11,0.5]
[1732222012644,23.776884,254.21,254.1,12.3569]
[1732222013438,23.776884,254.19,254.1,14.3245]
[1732222014220,23.776884,254.19,254.1,12.3569]
[1732222015436,23.776884,254.21,254.1,12.3569]
[1732222015617,27.710584,254.21,254.1,12.3569]
[1732222016335,37.544884,254.21,254.1,12.3569]
[1732222017339,3.9337,254.21,254.12,0.5]
[1732222017545,3.9337,254.21,254.12,7.3864]
[1732222017752,0.1388426,254.22,254.14,0.5]
[1732222017921,0.1388426,254.22,254.16,0.5]
[1732222019240,23.9157266,254.22,254.16,0.5]
[1732222019741,27.8493266,254.22,254.13,2.4674]
[1732222020125,27.8493266,254.22,254.13,7.3861]
[1732222021035,27.8493266,254.22,254.11,0.5]
[1732222021338,37.6833266,254.22,254.1,12.3569]
[1732222021640,40.39402293,254.22,254.1,14.3246]
[1732222023545,27.8493266,254.22,254.11,0.5]
[1732222024052,4.0724426,254.22,254.15,0.5]
[1732222024244,0.1388426,254.22,254.15,0.5]
[1732222024433,0.1388426,254.22,254.17,0.5]
[1732222025324,0.1388426,254.22,254.17,2.4671]
[1732222025524,0.1388426,254.22,254.17,1.9671]
[1732222025725,0.1388426,254.22,254.15,7.3855]
[1732222027032,0.1388426,254.22,254.17,0.5]
[1732222027239,0.1388426,254.22,254.15,0.5]
[1732222027551,0.1388426,254.22,254.18,0.5]
[1732222028328,23.776884,254.21,254.14,0.5]
[1732222028533,23.776884,254.21,254.14,2.4674]
[1732222029262,27.710684,254.21,254.12,7.3862]
[1732222029462,23.776884,254.21,254.14,0.5]
[1732222029752,23.9157266,254.22,254.14,0.5]
[1732222030126,27.8493266,254.22,254.14,0.5]
[1732222031128,27.8493266,254.22,254.15,1.9673]
[1732222031455,27.8493266,254.22,254.1,12.8569]
[1732222032049,27.8493266,254.22,254.1,14.8245]
[1732222033462,27.8493266,254.22,254.1,12.3569]
[1732222033633,23.776884,254.2,254.09,31.4543]
[1732222033834,23.776884,254.2,254.05,0.5]
[1732222034035,23.776884,254.21,254.12,0.5]
[1732222034240,23.776884,254.21,254.05,16.7287]
[1732222034241,0.1388426,254.22,254.16,12.5914]
[1732222034442,0.1388426,254.22,254.18,0.5]
[1732222034635,0.1388426,254.22,254.21,0.5]
[1732222036643,0.1388426,254.22,254.2,1.9668]
[1732222037349,0.1388426,254.22,254.21,0.5]
[1732222038651,0.1388426,254.22,254.2,4.9173]
[1732222038856,0.1388426,254.22,254.18,1.967]
[1732222039247,0.1388426,254.22,254.19,0.5]
[1732222039667,0.1388426,254.22,254.2,4.88778474]
[1732222039869,0.1388426,254.22,254.21,4.88778474]
[1732222040077,0.1388426,254.22,254.21,5.38778474]
[1732222041281,0.1388426,254.22,254.21,4.88778474]
[1732222041452,0.1388426,254.22,254.19,0.5]
[1732222041788,4.0724426,254.22,254.2,4.88723931]
[1732222041946,23.776884,254.21,254.13,31.7257]
[1732222042152,23.776884,254.21,254.14,4.88788303]
[1732222042369,23.776884,254.21,254.1,13.1601]
[1732222042370,23.776884,254.21,254.15,4.88788303]
[1732222042561,23.776884,254.21,254.16,4.88788303]
[1732222042869,23.776884,254.21,254.1,13.1601]
[1732222043074,23.776884,254.21,254.11,4.83772891]
[1732222043253,23.776884,254.21,254.12,4.83772891]
[1732222043454,23.776884,254.21,254.13,4.83772891]
[1732222043659,3.9339,254.2,254.14,4.83772891]
[1732222043967,23.776884,254.19,254.1,13.1601]
[1732222044171,23.776884,254.19,254.11,4.83802401]
[1732222044374,23.776884,254.19,254.12,4.83802401]
[1732222044573,23.776884,254.19,254.13,4.83802401]
[1732222044769,27.710584,254.21,254.14,4.83802401]
[1732222044973,27.710584,254.21,254.14,4.83813886]
[1732222045271,27.710584,254.21,254.09,2.4677]
[1732222046464,3.9337,254.21,254.11,0.5]
[1732222046679,3.9337,254.21,254.14,0.5]
[1732222046860,3.9337,254.21,254.12,0.5]
[1732222047056,3.9337,254.21,254.09,6.8872]
[1732222047257,3.9337,254.21,254.09,4.9195]
[1732222047578,13.768,254.21,254.09,5.4195]
[1732222047755,4.0724426,254.22,254.14,0.5]
[1732222047958,4.0724426,254.22,254.1,0.5]
[1732222048253,2.5,254.21,254.07,31.7777]
[1732222048471,3.9339,254.2,254.07,31.7777]
[1732222048672,3.9339,254.2,254.07,33.7456]
[1732222048983,23.776884,254.19,254.08,0.5]
[1732222049357,23.776884,254.19,254.07,38.6655]
[1732222049703,23.776884,254.19,254.07,36.6976]
[1732222050458,3.9342,254.18,254.07,36.6976]
[1732222050665,23.776884,254.17,254.07,36.6976]
[1732222050962,23.776884,254.17,254.11,0.5]
[1732222052069,0.1388426,254.22,254.16,0.5]
[1732222052788,0.1388426,254.22,254.21,0.5]
[1732222054566,0.1388426,254.22,254.21,22.0735]
[1732222055783,0.1388426,254.22,254.21,2.0735]
[1732222055963,0.1388426,254.22,254.2,4.88093361]
[1732222056163,0.1388426,254.22,254.18,5.38093361]
[1732222056586,0.1388426,254.22,254.18,6.95453361]
[1732222056771,0.1388426,254.22,254.18,2.0736]
[1732222056974,0.1388426,254.22,254.21,0.5]
[1732222057477,0.1388426,254.22,254.2,4.88093361]
[1732222057670,0.1388426,254.22,254.21,0.5]
[1732222057990,0.1388426,254.22,254.2,4.88093361]
[1732222058676,0.1388426,254.22,254.2,4.88021835]
[1732222058869,0.1388426,254.22,254.21,0.5]
[1732222059072,0.1388426,254.22,254.2,8.63912223]
[1732222059287,23.776884,254.21,254.14,4.88021835]
[1732222059584,23.776884,254.21,254.11,0.5]
[1732222060594,23.776884,254.21,254.09,10.39001835]
[1732222060892,23.776884,254.19,254.12,0.5]
[1732222061079,23.776884,254.19,254.09,10.39001835]
[1732222061391,23.776884,254.19,254.12,0.5]
[1732222061782,27.710984,254.19,254.12,0.5]
[1732222062174,23.776884,254.2,254.14,0.5]
[1732222062576,23.776884,254.2,254.12,5.38021835]
[1732222062896,23.776884,254.2,254.12,0.5]
[1732222063985,23.776884,254.18,254.12,0.5]
[1732222064883,23.776884,254.16,254.11,4.88021835]
[1732222065084,23.776884,254.16,254.09,4.88021835]
[1732222065592,23.776884,254.16,254.1,0.5]
[1732222066095,23.776884,254.14,254.1,0.5]
[1732222066286,23.776884,254.14,254.12,0.5]
[1732222066984,23.776884,254.16,254.12,0.5]
[1732222068172,23.776884,254.16,254.09,4.88021835]
[1732222068389,27.711384,254.16,254.11,0.5]
[1732222068972,27.711384,254.16,254.09,1.5742]
[1732222068973,27.711384,254.16,254.1,0.5]
[1732222069580,27.711384,254.16,254.1,2.0741]
[1732222069875,27.711384,254.16,254.11,0.5]
[1732222070071,27.711384,254.16,254.09,4.88232945]
[1732222070379,27.711384,254.16,254.07,5.38232945]
[1732222070577,27.711384,254.16,254.07,0.5]
[1732222070892,27.711384,254.16,254.07,5.38232945]
[1732222071091,27.711384,254.16,254.07,0.5]
[1732222072098,23.776884,254.17,254.09,0.5]
[1732222072390,23.776884,254.17,254.11,0.5]
[1732222072572,23.776884,254.17,254.09,0.5]
[1732222072783,23.776884,254.17,254.11,0.5]
[1732222073091,23.776884,254.15,254.11,0.5]
[1732222073283,23.776884,254.15,254.09,0.5]
[1732222073491,23.776884,254.15,254.11,0.5]
[1732222073690,2.70092865,254.21,254.11,0.5]
[1732222074002,3.934,254.2,254.13,0.5]
[1732222075080,23.776884,254.19,254.13,0.5]
[1732222075478,27.710984,254.19,254.13,0.5]
[1732222075779,27.710984,254.19,254.13,2.0739]
[1732222075976,27.710984,254.19,254.13,0.5]
[1732222076176,23.776884,254.16,254.08,4.88026872]
[1732222076396,23.776884,254.16,254.03,4.88026872]
[1732222076599,5.69052453,254.15,254.06,0.5]
[1732222076802,23.776884,254.14,254.06,0.5]
[1732222077099,23.776884,254.16,254.06,0.5]
[1732222077299,3.9346,254.15,254.06,0.5]
[1732222077498,23.776884,254.14,254.06,0.5]
[1732222078692,23.776884,254.14,254.08,0.5]
[1732222078886,3.9346,254.15,254.08,0.5]
[1732222079197,3.9337,254.21,254.1,0.5]
[1732222079504,3.9337,254.21,254.12,0.5]
[1732222080099,3.9337,254.21,254.1,0.5]
[1732222080401,23.776884,254.2,254.1,0.5]
[1732222081101,23.776884,254.2,254.08,6.0099]
[1732222081302,23.776884,254.2,254.1,0.5]
[1732222081514,23.776884,254.2,254.11,1.5741]
[1732222082404,23.776884,254.18,254.11,5.5094]
[1732222082698,23.776884,254.18,254.12,0.5]
[1732222083079,23.776884,254.2,254.12,0.5]
[1732222083279,23.776884,254.2,254.11,5.5094]
[1732222083280,23.776884,254.2,254.15,0.5]
[1732222083801,0.1388426,254.22,254.15,0.5]
[1732222083802,23.9157266,254.22,254.15,0.5]
[1732222084111,0.1388426,254.22,254.15,0.5]
[1732222084303,23.776884,254.21,254.13,4.87895574]
[1732222084599,4.0724426,254.22,254.11,2.0741]
[1732222084600,23.776884,254.19,254.11,2.0741]
[1732222084801,23.776884,254.19,254.11,1.5741]
[1732222085013,23.776884,254.19,254.11,3.9353]
[1732222085375,23.776884,254.19,254.11,4.4353]
[1732222085905,23.776884,254.19,254.1,4.88159244]
[1732222086088,23.776884,254.19,254.07,5.38159244]
[1732222086487,23.776884,254.17,254.07,6.95589244]
[1732222087221,23.776884,254.17,254.09,0.5]
[1732222088177,3.9345,254.16,254.08,6.45856091]
[1732222088407,23.776884,254.15,254.09,0.5]
[1732222089282,3.9339,254.2,254.08,10.39426091]
[1732222089487,4.0724426,254.22,254.13,0.5]
[1732222090082,0.1388426,254.22,254.16,0.5]
[1732222090291,0.1388426,254.22,254.17,1.5737]
[1732222090486,4.0724426,254.22,254.16,0.5]
[1732222092309,23.776884,254.21,254.16,0.5]
[1732222093505,23.776884,254.21,254.18,0.5]
[1732222093717,0.1388426,254.22,254.18,0.5]
[1732222093915,0.1388426,254.22,254.16,1.5737]
[1732222093916,0.1388426,254.22,254.21,0.5]
[1732222096716,0.1388426,254.22,254.21,34.0509]
[1732222097717,0.1388426,254.22,254.21,66.4617]
[1732222098504,3.9316,254.35,254.21,66.4617]
[1732222098707,3.9308,254.4,254.33,0.5]